fUSD/lending_fUSD_20250405
["ID","MTS","AMOUNT","RATE_DAILY","PERIOD"]
[357187922,1743874084297,10000.0,0.00015,2]
[357187923,1743874084320,10000.0,0.00015,2]
[357187924,1743874084344,10000.0,0.00015,2]
[357187925,1743874084374,10000.0,0.00015,2]
[357187926,1743874084405,10000.0,0.00015,2]
[357187927,1743874084427,10000.0,0.00015,2]
[357187928,1743874084451,10000.0,0.00015,2]
[357187929,1743874084473,10000.0,0.00015,2]
[357187930,1743874084496,10000.0,0.00015,2]
[357187931,1743874084520,10000.0,0.00015,2]
[357187932,1743874084542,10000.0,0.00015,2]
[357187933,1743874084564,10000.0,0.00015,2]
[357187934,1743874084586,10000.0,0.00015,2]
[357187935,1743874084608,10000.0,0.00015,2]
[357187936,1743874084629,10000.0,0.00015,2]
[357187937,1743874084652,10000.0,0.00015,2]
[357187938,1743874084673,10000.0,0.00015,2]
[357187939,1743874084695,10000.0,0.00015,2]
[357187940,1743874084951,10000.0,0.00015,2]
[357187941,1743874084991,10000.0,0.00015,2]
[357187942,1743874085014,10000.0,0.00015,2]
[357187943,1743874085036,10000.0,0.00015,2]
[357187944,1743874085058,10000.0,0.00015,2]
[357187945,1743874085080,10000.0,0.00015,2]
[357187946,1743874085102,10000.0,0.00015,2]
[357187947,1743874085123,10000.0,0.00015,2]
[357187948,1743874085144,10000.0,0.00015,2]
[357187949,1743874085168,10000.0,0.00015,2]
[357187950,1743874085193,10000.0,0.00015,2]
[357187951,1743874085215,10000.0,0.00015,2]
[357187952,1743874085236,10000.0,0.00015,2]
[357187953,1743874085259,10000.0,0.00015,2]
[357187954,1743874085280,10000.0,0.00015,2]
[357187955,1743874085307,358047.18671997,0.00015,2]
[357187956,1743874085385,-176.79686465,0.00019973,2]
[357187957,1743874085409,-16.44773535,0.00019973,2]
[357187973,1743874231701,-300.0,0.00019899,2]
[357187974,1743874231711,-150.82714874,0.00019899,2]
[357187975,1743874232025,-149.17285126,0.00019899,2]
[357187976,1743874232035,-17848.20666901,0.000199,2]
[357188033,1743874237665,-291.94164525,0.00019899,2]
[357188034,1743874237675,-138.27500197,0.000199,2]
[357188035,1743874237738,-1473.28078962,0.000199,2]
[357188036,1743874237753,-5661.34921038,0.000199,2]
[357188037,1743874237764,-591.87,0.000199,2]
[357188038,1743874237776,-105.6450909,0.000199,2]
[357188039,1743874237786,-5955.87651458,0.000199,2]
[357188040,1743874237798,-9909.0912346,0.000199,2]
[357188041,1743874237808,-192.2877996,0.000199,2]
[357188042,1743874237818,-1286.77952768,0.000199,2]
[357188043,1743874237828,-1186.70461256,0.000199,2]
[357188044,1743874237838,-213.04326409,0.0001999,2]
[357188045,1743874237848,-213.04326409,0.0001999,2]
[357188046,1743874237857,-300.0,0.00019999,2]
[357188047,1743874237867,-2057971.86179635,0.0002,2]
[357188048,1743874237880,-1420.76531625,0.0002,2]
[357188049,1743874237899,-2142512.83808406,0.0002,2]
[357188050,1743874237911,-158946.78155812,0.0002,2]
[357188051,1743874237923,-282.55999991,0.0002,2]
[357188153,1743874242067,-4355.21686303,0.0002,2]
[357188154,1743874242078,-559.86523193,0.0002,2]
[357188155,1743874242100,-1707.45812203,0.0002,2]
[357188156,1743874242111,-652.420016,0.0002,2]
[357188157,1743874242122,-1326.9,0.0002,2]
[357188158,1743874242133,-48546.4966308,0.0002,2]
[357188179,1743874243711,-936.651826,0.0002,2]
[357188210,1743874246027,-31671.26715,0.0002,2]
[357188211,1743874246042,-357186.17074961,0.0002,2]
[357188245,1743874258246,176.0,0.00032,120]
[357188248,1743874380349,-158.59649864,0.0001999,2]
[357188249,1743874380372,-3802.89768637,0.0001999,2]
[357188250,1743874380398,-6038.50581499,0.0002,2]
[357188251,1743874380718,-10000.0,0.0002,2]
[357188252,1743874381089,-10000.0,0.0002,2]
[357188253,1743874381475,-10000.0,0.0002,2]
[357188254,1743874381847,-10000.0,0.0002,2]
[357188255,1743874382224,-10000.0,0.0002,2]
[357188256,1743874382645,-10000.0,0.0002,2]
[357188257,1743874383042,-10000.0,0.0002,2]
[357188258,1743874383674,-10000.0,0.0002,2]
[357188259,1743874383976,-10000.0,0.0002,2]
[357188260,1743874384349,-10000.0,0.0002,2]
[357188261,1743874384732,-10000.0,0.0002,2]
[357188262,1743874385123,-10000.0,0.0002,2]
[357188263,1743874385485,-10000.0,0.0002,2]
[357188264,1743874390390,-1000.0,0.0002,2]
[357188265,1743874390710,-1000.0,0.0002,2]
[357188266,1743874391059,-1000.0,0.0002,2]
[357188267,1743874391383,-1000.0,0.0002,2]
[357188268,1743874391711,-1000.0,0.0002,2]
[357188269,1743874392085,-1000.0,0.0002,2]
[357188270,1743874392636,-1000.0,0.0002,2]
[357188271,1743874392998,-1000.0,0.0002,2]
[357188272,1743874393300,-1000.0,0.0002,2]
[357188273,1743874393620,-1000.0,0.0002,2]
[357188274,1743874394004,-1000.0,0.0002,2]
[357188275,1743874394476,-1000.0,0.0002,2]
[357188276,1743874394752,-1000.0,0.0002,2]
[357188277,1743874395209,-1000.0,0.0002,2]
[357188278,1743874395658,-1000.0,0.0002,2]
[357188279,1743874397186,-1000.0,0.0002,2]
[357188280,1743874397515,-1000.0,0.0002,2]
[357188281,1743874397918,-1000.0,0.0002,2]
[357188282,1743874398639,-1000.0,0.0002,2]
[357188283,1743874399377,-1000.0,0.0002,2]
[357188284,1743874404028,-40000.0,0.0002,2]
[357188286,1743874418316,-526567.0,0.0002,2]
[357188288,1743874495116,-300.0,0.00019999,2]
[357188289,1743874495140,-500.0,0.00019999,2]
[357188290,1743874495165,-20.4657,0.00019999,2]
[357188292,1743874560360,-168.0354608,0.00019999,2]
[357188293,1743874560391,-92880.41396532,0.0002,2]
[357188294,1743874560416,-1285.09837437,0.0002,2]
[357188295,1743874560442,-151.27,0.0002,2]
[357188296,1743874560472,-151.27,0.0002,2]
[357188297,1743874560498,-151.27,0.0002,2]
[357188298,1743874560522,-151.27,0.0002,2]
[357188299,1743874560547,-151.27,0.0002,2]
[357188300,1743874560571,-151.27,0.0002,2]
[357188301,1743874560596,-151.27,0.0002,2]
[357188302,1743874560620,-151.27,0.0002,2]
[357188303,1743874560644,-151.27,0.0002,2]
[357188304,1743874560668,-151.27,0.0002,2]
[357188305,1743874560692,-151.27,0.0002,2]
[357188306,1743874560717,-151.27,0.0002,2]
[357188307,1743874560741,-151.27,0.0002,2]
[357188308,1743874560767,-151.27,0.0002,2]
[357188309,1743874560791,-151.27,0.0002,2]
[357188310,1743874560814,-151.27,0.0002,2]
[357188311,1743874560838,-151.27,0.0002,2]
[357188312,1743874560863,-151.27,0.0002,2]
[357188313,1743874560888,-151.27,0.0002,2]
[357188314,1743874560912,-151.27,0.0002,2]
[357188315,1743874560936,-151.27,0.0002,2]
[357188316,1743874560960,-151.27,0.0002,2]
[357188317,1743874560984,-151.27,0.0002,2]
[357188319,1743874651086,-158.8258547,0.000209,2]
[357188320,1743874651109,-3336.1693453,0.00021,2]
[357188321,1743874682856,-194.83188909,0.0002,2]
[357188322,1743874981664,-175.14,0.00019,2]
[357188325,1743875023711,-74.86,0.00019,2]
[357188326,1743875023734,-92.13823948,0.0002,2]
[357188327,1743875033364,-166.99823948,0.0002,2]
[357188328,1743875035133,-350.89907894,0.0002,2]
[357188329,1743875039333,-150.0,0.0002,2]
[357188331,1743875067996,-1033.52744023,0.0002,2]
[357188429,1743875432021,-250.0,0.000205,2]
[357188430,1743875432031,-217.06727,0.000205,2]
[357188432,1743875432400,-62.86265523,0.000205,2]
[357188433,1743875432412,-57.74522466,0.00021,2]
[357188434,1743875432426,-430.25086577,0.00021,2]
[357188435,1743875432439,-332.76705575,0.00021,2]
[357188436,1743875432449,-300.0,0.00021,2]
[357188437,1743875432463,-970.76,0.00021069,2]
[357188438,1743875432475,-260.71490296,0.000217,2]
[357188439,1743875432487,-150.0,0.00021917,2]
[357188440,1743875432498,-250.0,0.00021999,2]
[357188441,1743875432509,-246.97131354,0.00022,2]
[357188442,1743875432521,-500.0,0.00022,2]
[357188443,1743875432532,-250.0,0.00022,2]
[357188444,1743875432543,-1139.56513081,0.000225,2]
[357188445,1743875432555,-350.0,0.00023,2]
[357188446,1743875432567,-156.73,0.00023091,2]
[357188447,1743875432578,-500.0,0.00023178,2]
[357188448,1743875432589,-166.99823948,0.00023189,2]
[357188449,1743875432600,-300.0,0.00023189,2]
[357188450,1743875432611,-22055.54586477,0.0002319,2]
[357188451,1743875432620,-479.00088233,0.00023199,2]
[357188452,1743875432630,-338.0,0.00023199,2]
[357188453,1743875432642,-50206.10178317,0.000232,2]
[357188454,1743875432654,-150.0,0.00023287,2]
[357188455,1743875432667,-970.76,0.00023333,2]
[357188456,1743875432680,-200.0,0.000235,2]
[357188457,1743875432691,-381.04,0.0002362,2]
[357188458,1743875432702,-1000.0,0.00023639,2]
[357188459,1743875432714,-255.95,0.00023836,2]
[357188460,1743875432726,-153.03,0.00023999,2]
[357188461,1743875432737,-153.03,0.00023999,2]
[357188462,1743875432748,-153.03,0.00023999,2]
[357188463,1743875432760,-153.03,0.00023999,2]
[357188464,1743875432773,-51525.18999636,0.00024,2]
[357188465,1743875432784,-982.09056857,0.00024,2]
[357188466,1743875432796,-40721.98840187,0.00024,2]
[357188467,1743875432808,-23900.0,0.00024011,2]
[357188468,1743875432819,-783.84768066,0.0002402,2]
[357188469,1743875432830,-405.79238113,0.0002421,2]
[357188470,1743875432842,-3555.72150417,0.0002421,2]
[357188471,1743875432853,-166.66,0.00024218,2]
[357188472,1743875432865,-150.0,0.00024228,7]
[357188473,1743875432876,-193.5482027,0.00024657,2]
[357188474,1743875432887,-785.28095846,0.00025,2]
[357188475,1743875432898,-400.0,0.00025,2]
[357188476,1743875432909,-176.39,0.00025097,2]
[357188477,1743875432920,-198.0,0.00025168,2]
[357188478,1743875432933,-970.76,0.00025597,2]
[357188479,1743875432945,-1120.0,0.000265,3]
[357188480,1743875432957,-1000.0,0.00026594,2]
[357188481,1743875432969,-406.86,0.00026849,2]
[357188482,1743875432982,-450.0,0.00027,2]
[357188483,1743875432992,-5555.0,0.000271,5]
[357188484,1743875433002,-1706.08,0.00027397,15]
[357188485,1743875433012,-2043.79583998,0.000275,2]
[357188486,1743875433022,-170.33,0.00027733,2]
[357188487,1743875433032,-970.76,0.0002786,2]
[357188488,1743875433045,-166.66,0.00028215,2]
[357188489,1743875433058,-500.0,0.00029,2]
[357188490,1743875433070,-1000.0,0.00029549,2]
[357188491,1743875433081,-337.479,0.00029622,23]
[357188492,1743875433091,-186.53494671,0.00030036,2]
[357188493,1743875433101,-19975.5447444,0.00030116,3]
[357188494,1743875433111,-970.76,0.00030124,2]
[357188495,1743875433122,-59926.6342333,0.00030126,3]
[357188496,1743875433133,-492.68113409,0.00030136,2]
[357188497,1743875433144,-500.0,0.00030136,2]
[357188498,1743875433156,-504.87944859,0.00030136,2]
[357188499,1743875433167,-507.10507535,0.00030136,2]
[357188500,1743875433178,-500.0,0.00030136,2]
[357188501,1743875433189,-500.0,0.00030136,2]
[357188502,1743875433201,-500.0,0.00030136,2]
[357188503,1743875433211,-500.0,0.00030136,2]
[357188504,1743875433222,-503.38515947,0.00030136,2]
[357188505,1743875433232,-500.0,0.00030136,2]
[357188506,1743875433243,-938.94,0.00030136,2]
[357188507,1743875433253,-2000.0,0.00030136,2]
[357188508,1743875433265,-500.0,0.00030136,2]
[357188509,1743875433276,-500.0,0.00030136,2]
[357188510,1743875433287,-543.84,0.00030136,2]
[357188511,1743875433297,-500.0,0.00030136,2]
[357188512,1743875433311,-500.0,0.00030136,2]
[357188513,1743875433322,-514.11558137,0.00030136,2]
[357188514,1743875433333,-508.38329292,0.00030136,2]
[357188515,1743875433344,-500.0,0.00030136,2]
[357188516,1743875433356,-500.0,0.00030136,2]
[357188517,1743875433367,-500.0,0.00030136,2]
[357188518,1743875433378,-500.0,0.00030136,2]
[357188519,1743875433388,-336.89709689,0.00030136,2]
[357188520,1743875433399,-500.0,0.00030136,2]
[357188521,1743875433410,-647.6,0.00030136,2]
[357188522,1743875433421,-1582.96,0.00030136,2]
[357188523,1743875433431,-500.0,0.00030136,2]
[357188524,1743875433442,-500.0,0.00030136,2]
[357188525,1743875433453,-500.0,0.00030136,2]
[357188526,1743875433464,-500.0,0.00030136,2]
[357188527,1743875433475,-500.0,0.00030136,2]
[357188528,1743875433486,-500.0,0.00030136,2]
[357188529,1743875433496,-500.0,0.00030136,2]
[357188530,1743875433507,-500.0,0.00030136,2]
[357188531,1743875433517,-500.0,0.00030136,2]
[357188532,1743875433528,-510.55572545,0.00030136,2]
[357188533,1743875433538,-500.0,0.00030136,2]
[357188534,1743875433549,-549.55186746,0.00030136,2]
[357188535,1743875433560,-500.0,0.00030136,2]
[357188536,1743875433571,-536.38,0.00030136,2]
[357188537,1743875433584,-500.0,0.00030136,2]
[357188538,1743875433595,-616.46925663,0.00030136,2]
[357188539,1743875433606,-443.86399886,0.00030136,2]
[357188540,1743875433617,-500.0,0.00030136,2]
[357188541,1743875433628,-500.0,0.00030136,2]
[357188542,1743875433639,-500.0,0.00030136,2]
[357188543,1743875433651,-608.44,0.00030136,2]
[357188544,1743875433661,-500.0,0.00030136,2]
[357188545,1743875433674,-500.0,0.00030136,2]
[357188546,1743875433685,-487.00007391,0.00030136,2]
[357188547,1743875433695,-569.45218777,0.00030136,2]
[357188548,1743875433705,-561.96,0.00030136,2]
[357188549,1743875433718,-500.0,0.00030136,2]
[357188550,1743875433729,-500.0,0.00030136,2]
[357188551,1743875433739,-500.0,0.00030136,2]
[357188552,1743875433752,-589.6,0.00030136,2]
[357188553,1743875433763,-500.0,0.00030136,2]
[357188554,1743875433775,-500.0,0.00030136,2]
[357188555,1743875433786,-500.0,0.00030136,2]
[357188556,1743875433797,-500.0,0.00030136,2]
[357188557,1743875433808,-500.0,0.00030136,2]
[357188558,1743875433818,-893.87,0.00030136,2]
[357188559,1743875433829,-500.0,0.00030136,2]
[357188560,1743875433840,-500.0,0.00030136,2]
[357188561,1743875433851,-500.0,0.00030136,2]
[357188562,1743875433861,-500.0,0.00030136,2]
[357188563,1743875433873,-431.69504928,0.00030136,2]
[357188564,1743875433885,-504.494281,0.00030136,2]
[357188565,1743875433896,-500.0,0.00030136,2]
[357188566,1743875433908,-500.0,0.00030136,2]
[357188567,1743875433919,-500.0,0.00030136,2]
[357188568,1743875433929,-516.19949884,0.00030136,2]
[357188569,1743875433940,-500.0,0.00030136,2]
[357188570,1743875433950,-500.0,0.00030136,2]
[357188571,1743875433960,-500.0,0.00030136,2]
[357188572,1743875433971,-500.0,0.00030136,2]
[357188573,1743875433982,-510.00650528,0.00030136,2]
[357188574,1743875433993,-500.0,0.00030136,2]
[357188575,1743875434004,-500.0,0.00030136,2]
[357188576,1743875434015,-500.0,0.00030136,2]
[357188577,1743875434029,-508.76,0.00030136,2]
[357188578,1743875434040,-500.0,0.00030136,2]
[357188579,1743875434051,-500.0,0.00030136,2]
[357188580,1743875434062,-512.1328449,0.00030136,2]
[357188581,1743875434073,-500.0,0.00030136,2]
[357188582,1743875434084,-500.0,0.00030136,2]
[357188583,1743875434096,-318.46742706,0.00030136,2]
[357188584,1743875434106,-500.0,0.00030136,2]
[357188585,1743875434117,-1542.85,0.00030136,2]
[357188586,1743875434128,-603.48118797,0.00030136,2]
[357188587,1743875434139,-500.0,0.00030136,2]
[357188588,1743875434154,-500.0,0.00030136,2]
[357188589,1743875434165,-500.0,0.00030136,2]
[357188590,1743875434176,-500.0,0.00030136,2]
[357188591,1743875434187,-5755.79620615,0.00030136,2]
[357188592,1743875434631,-3630.91379385,0.00030136,2]
[357188593,1743875434640,-500.0,0.00030136,2]
[357188594,1743875434650,-500.0,0.00030136,2]
[357188595,1743875434660,-500.0,0.00030136,2]
[357188596,1743875434671,-718.92,0.00030136,2]
[357188597,1743875434681,-761.88,0.00030136,2]
[357188598,1743875434691,-647.63,0.00030136,2]
[357188599,1743875434700,-1296.98,0.00030136,2]
[357188600,1743875434710,-500.0,0.00030136,2]
[357188601,1743875434720,-500.0,0.00030136,2]
[357188602,1743875434730,-500.0,0.00030136,2]
[357188603,1743875434740,-778.79,0.00030136,2]
[357188604,1743875434750,-526.45,0.00030136,2]
[357188605,1743875434760,-455.66777659,0.00030136,2]
[357188606,1743875434772,-505.37195443,0.00030136,2]
[357188607,1743875434782,-500.0,0.00030136,2]
[357188608,1743875434791,-862.42,0.00030136,2]
[357188609,1743875434800,-810.0,0.00030136,2]
[357188610,1743875434809,-500.0,0.00030136,2]
[357188611,1743875434818,-500.0,0.00030136,2]
[357188612,1743875434827,-4673.6,0.00030136,2]
[357188613,1743875434837,-500.0,0.00030136,2]
[357188614,1743875434846,-500.0,0.00030136,2]
[357188615,1743875434855,-500.0,0.00030136,2]
[357188616,1743875434864,-500.0,0.00030136,2]
[357188617,1743875434873,-6056.29,0.00030136,2]
[357188618,1743875434882,-521.95804604,0.00030136,2]
[357188619,1743875434891,-500.0,0.00030136,2]
[357188620,1743875434901,-1616.33,0.00030136,2]
[357188621,1743875434910,-500.0,0.00030136,2]
[357188622,1743875434919,-683.66,0.00030136,2]
[357188623,1743875434928,-500.0,0.00030136,2]
[357188624,1743875434939,-500.0,0.00030136,2]
[357188625,1743875434949,-500.0,0.00030136,2]
[357188626,1743875434958,-11280.77,0.00030136,2]
[357188627,1743875434968,-857.45,0.00030136,2]
[357188628,1743875434977,-548.57018206,0.00030136,2]
[357188629,1743875434986,-571.13,0.00030136,2]
[357188630,1743875434996,-503.28,0.00030136,2]
[357188631,1743875435005,-500.0,0.00030136,2]
[357188632,1743875435014,-1525.7,0.00030136,2]
[357188633,1743875435023,-500.0,0.00030136,2]
[357188634,1743875435033,-500.0,0.00030136,2]
[357188635,1743875435042,-500.0,0.00030136,2]
[357188636,1743875435051,-500.0,0.00030136,2]
[357188637,1743875435060,-1387.9,0.00030136,2]
[357188638,1743875435070,-464.63554163,0.00030136,2]
[357188639,1743875435079,-500.0,0.00030136,2]
[357188640,1743875435088,-504.2921904,0.00030136,2]
[357188641,1743875435097,-39951.0894888,0.0003039,3]
[357188642,1743875435106,-589.6,0.000304,2]
[357188643,1743875435116,-893.87,0.000304,2]
[357188644,1743875435126,-39951.0894888,0.000304,3]
[357188645,1743875435136,-151.28,0.000304,2]
[357188646,1743875435145,-153.03,0.00030409,2]
[357188647,1743875435155,-153.03,0.00030409,2]
[357188648,1743875435165,-153.03,0.00030409,2]
[357188649,1743875435176,-153.03,0.00030409,2]
[357188650,1743875435185,-153.03,0.00030409,2]
[357188651,1743875435195,-153.03,0.00030409,2]
[357188652,1743875435205,-562.67591789,0.0003041,2]
[357188653,1743875435214,-500.0,0.0003041,2]
[357188654,1743875435223,-500.0,0.0003041,2]
[357188655,1743875435232,-500.0,0.0003041,2]
[357188656,1743875435242,-500.0,0.0003041,2]
[357188657,1743875435252,-500.0,0.0003041,2]
[357188658,1743875435262,-938.94,0.0003041,2]
[357188659,1743875435272,-2000.0,0.0003041,2]
[357188660,1743875435281,-500.0,0.0003041,2]
[357188661,1743875435291,-500.0,0.0003041,2]
[357188662,1743875435300,-543.84,0.0003041,2]
[357188663,1743875435309,-500.0,0.0003041,2]
[357188664,1743875435318,-500.0,0.0003041,2]
[357188665,1743875435327,-266.82689442,0.0003041,2]
[357188666,1743875435336,-500.0,0.0003041,2]
[357188667,1743875435346,-500.0,0.0003041,2]
[357188668,1743875435356,-500.0,0.0003041,2]
[357188669,1743875435365,-500.0,0.0003041,2]
[357188670,1743875435374,-647.6,0.0003041,2]
[357188671,1743875435383,-1582.96,0.0003041,2]
[357188672,1743875435392,-500.0,0.0003041,2]
[357188673,1743875435402,-500.0,0.0003041,2]
[357188674,1743875435411,-500.0,0.0003041,2]
[357188675,1743875435420,-500.0,0.0003041,2]
[357188676,1743875435429,-500.0,0.0003041,2]
[357188677,1743875435439,-500.0,0.0003041,2]
[357188678,1743875435448,-500.0,0.0003041,2]
[357188679,1743875435457,-500.0,0.0003041,2]
[357188680,1743875435467,-500.0,0.0003041,2]
[357188681,1743875435476,-500.0,0.0003041,2]
[357188682,1743875435485,-500.0,0.0003041,2]
[357188683,1743875435494,-536.38,0.0003041,2]
[357188684,1743875435503,-528.03561173,0.0003041,2]
[357188685,1743875435512,-500.0,0.0003041,2]
[357188686,1743875435521,-500.0,0.0003041,2]
[357188687,1743875435530,-530.03073223,0.0003041,2]
[357188688,1743875435539,-608.44,0.0003041,2]
[357188689,1743875435548,-500.0,0.0003041,2]
[357188690,1743875435557,-504.87230279,0.0003041,2]
[357188691,1743875435566,-561.96,0.0003041,2]
[357188692,1743875435576,-533.86291561,0.0003041,2]
[357188693,1743875435586,-500.0,0.0003041,2]
[357188694,1743875435595,-500.0,0.0003041,2]
[357188695,1743875435604,-573.04108844,0.0003041,2]
[357188696,1743875435613,-500.0,0.0003041,2]
[357188697,1743875435622,-500.0,0.0003041,2]
[357188698,1743875435631,-500.0,0.0003041,2]
[357188699,1743875435641,-500.0,0.0003041,2]
[357188700,1743875435650,-156.16434652,0.0003041,2]
[357188701,1743875435659,-500.0,0.0003041,2]
[357188702,1743875435671,-500.0,0.0003041,2]
[357188703,1743875435681,-500.0,0.0003041,2]
[357188704,1743875435690,-500.0,0.0003041,2]
[357188705,1743875435699,-500.0,0.0003041,2]
[357188706,1743875435708,-500.0,0.0003041,2]
[357188707,1743875435719,-500.0,0.0003041,2]
[357188708,1743875435728,-500.0,0.0003041,2]
[357188709,1743875435737,-500.0,0.0003041,2]
[357188710,1743875435747,-500.0,0.0003041,2]
[357188711,1743875435756,-500.0,0.0003041,2]
[357188712,1743875435765,-532.87314997,0.0003041,2]
[357188713,1743875435774,-508.76,0.0003041,2]
[357188714,1743875435784,-500.0,0.0003041,2]
[357188715,1743875435792,-500.0,0.0003041,2]
[357188716,1743875435802,-500.0,0.0003041,2]
[357188717,1743875435811,-500.0,0.0003041,2]
[357188718,1743875435820,-1542.85,0.0003041,2]
[357188719,1743875435829,-500.0,0.0003041,2]
[357188720,1743875435839,-500.0,0.0003041,2]
[357188721,1743875435847,-500.0,0.0003041,2]
[357188722,1743875435856,-500.0,0.0003041,2]
[357188723,1743875435865,-9386.71,0.0003041,2]
[357188724,1743875435874,-500.0,0.0003041,2]
[357188725,1743875435883,-500.0,0.0003041,2]
[357188726,1743875435892,-500.0,0.0003041,2]
[357188727,1743875435902,-718.92,0.0003041,2]
[357188728,1743875435911,-761.88,0.0003041,2]
[357188729,1743875435920,-647.63,0.0003041,2]
[357188730,1743875435929,-1296.98,0.0003041,2]
[357188731,1743875435938,-500.0,0.0003041,2]
[357188732,1743875435947,-500.0,0.0003041,2]
[357188733,1743875435956,-778.79,0.0003041,2]
[357188734,1743875435965,-526.45,0.0003041,2]
[357188735,1743875435974,-500.0,0.0003041,2]
[357188736,1743875435983,-862.42,0.0003041,2]
[357188737,1743875435992,-810.0,0.0003041,2]
[357188738,1743875436003,-500.0,0.0003041,2]
[357188739,1743875436012,-500.0,0.0003041,2]
[357188740,1743875436021,-4673.6,0.0003041,2]
[357188741,1743875436030,-500.0,0.0003041,2]
[357188742,1743875436039,-500.0,0.0003041,2]
[357188743,1743875436048,-211.59099388,0.0003041,2]
[357188744,1743875436056,-500.0,0.0003041,2]
[357188745,1743875436066,-6056.29,0.0003041,2]
[357188746,1743875436076,-500.0,0.0003041,2]
[357188747,1743875436085,-1616.33,0.0003041,2]
[357188748,1743875436094,-500.0,0.0003041,2]
[357188749,1743875436103,-683.66,0.0003041,2]
[357188750,1743875436112,-256.16774745,0.0003041,2]
[357188751,1743875436121,-500.0,0.0003041,2]
[357188752,1743875436130,-500.0,0.0003041,2]
[357188753,1743875436139,-11280.77,0.0003041,2]
[357188754,1743875436148,-857.45,0.0003041,2]
[357188755,1743875436157,-571.13,0.0003041,2]
[357188756,1743875436167,-503.28,0.0003041,2]
[357188757,1743875436176,-500.0,0.0003041,2]
[357188758,1743875436185,-1525.7,0.0003041,2]
[357188759,1743875436194,-500.0,0.0003041,2]
[357188760,1743875436203,-500.0,0.0003041,2]
[357188761,1743875436213,-500.0,0.0003041,2]
[357188762,1743875436222,-500.0,0.0003041,2]
[357188763,1743875436231,-1387.9,0.0003041,2]
[357188764,1743875436240,-500.0,0.0003041,2]
[357188765,1743875436250,-500.0,0.00030642,2]
[357188766,1743875436259,-319.24938404,0.00030642,5]
[357188767,1743875436269,-162.16494766,0.00030642,5]
[357188768,1743875436278,-500.0,0.00030642,5]
[357188769,1743875436288,-164.05735681,0.00030642,5]
[357188770,1743875436297,-160.87933285,0.00030642,5]
[357188771,1743875436306,-200.50540931,0.00030642,2]
[357188772,1743875436315,-160.67863633,0.00030642,5]
[357188773,1743875436324,-476.69596862,0.00030642,2]
[357188774,1743875436333,-153.66925699,0.00030642,5]
[357188775,1743875436343,-19975.5447444,0.00030654,3]
[357188776,1743875436352,-39951.0894888,0.00030664,3]
[357188777,1743875436361,-39951.0894888,0.00030674,3]
[357188778,1743875436370,-524.57378483,0.00030684,2]
[357188779,1743875436379,-500.0,0.00030684,2]
[357188780,1743875436388,-500.0,0.00030684,2]
[357188781,1743875436397,-500.0,0.00030684,2]
[357188782,1743875436407,-500.0,0.00030684,2]
[357188783,1743875436416,-938.94,0.00030684,2]